[Event "Titled Tuesday Blitz May 24 Early 2022"]
[White "Makhnev, Denis"]
[Black "Livaic, Leon"]
[WhiteFideId "13707647"]
[BlackFideId "14531534"]
[WhiteElo "2501"]
[BlackElo "2540"]
[Result "0-1"]
[Round "11"]
[TimeControl "180+1"]
[Date "2022.05.24"]
[WhiteClock "0:00:03"]
[BlackClock "0:00:04"]

1. d4 {[%clk 0:03:00]}  d5 {[%clk 0:02:59]} 2. c4 {[%clk 0:03:01]}  e6 {[%clk 0:03:00]} 3. Nf3 {[%clk 0:03:02]}  Nf6 {[%clk 0:03:00]} 4. Nc3 {[%clk 0:03:02]}  a6 {[%clk 0:02:57]} 5. cxd5 {[%clk 0:03:02]}  exd5 {[%clk 0:02:57]} 6. Bg5 {[%clk 0:03:01]}  Be6 {[%clk 0:02:58]} 7. Qc2 {[%clk 0:03:01]}  Nbd7 {[%clk 0:02:55]} 8. e3 {[%clk 0:03:01]}  Bd6 {[%clk 0:02:55]} 9. Bd3 {[%clk 0:03:00]}  c6 {[%clk 0:02:55]} 10. Bf4 {[%clk 0:03:00]}  Qb8 {[%clk 0:02:54]} 11. Bxd6 {[%clk 0:03:01]}  Qxd6 {[%clk 0:02:55]} 12. h3 {[%clk 0:03:01]}  O-O {[%clk 0:02:55]} 13. O-O {[%clk 0:03:01]}  Qe7 {[%clk 0:02:53]} 14. Rab1 {[%clk 0:02:57]}  a5 {[%clk 0:02:52]} 15. Rfc1 {[%clk 0:02:56]}  g6 {[%clk 0:02:52]} 16. a3 {[%clk 0:02:56]}  Rfc8 {[%clk 0:02:47]} 17. Na4 {[%clk 0:02:52]}  Ne8 {[%clk 0:02:46]} 18. Ne5 {[%clk 0:02:32]}  Nef6 {[%clk 0:02:23]} 19. Nxd7 {[%clk 0:02:29]}  Nxd7 {[%clk 0:02:23]} 20. b4 {[%clk 0:02:29]}  axb4 {[%clk 0:02:22]} 21. axb4 {[%clk 0:02:30]}  b5 {[%clk 0:02:22]} 22. Nc5 {[%clk 0:02:29]}  Nxc5 {[%clk 0:02:22]} 23. Qxc5 {[%clk 0:02:24]}  Qxc5 {[%clk 0:02:22]} 24. Rxc5 {[%clk 0:02:25]}  Ra3 {[%clk 0:02:10]} 25. Be2 {[%clk 0:02:24]}  Bd7 {[%clk 0:02:10]} 26. g4 {[%clk 0:02:04]}  Rca8 {[%clk 0:02:09]} 27. g5 {[%clk 0:01:37]}  Ra1 {[%clk 0:02:04]} 28. Rxa1 {[%clk 0:01:37]}  Rxa1+ {[%clk 0:02:04]} 29. Kg2 {[%clk 0:01:38]}  Rb1 {[%clk 0:02:04]} 30. Bg4 {[%clk 0:01:38]}  Be8 {[%clk 0:02:02]} 31. e4 {[%clk 0:01:39]}  Kf8 {[%clk 0:01:28]} 32. exd5 {[%clk 0:01:32]}  cxd5 {[%clk 0:01:29]} 33. Kg3 {[%clk 0:01:29]}  Rxb4 {[%clk 0:01:27]} 34. Rxd5 {[%clk 0:01:29]}  Rb3+ {[%clk 0:01:20]} 35. Kf4 {[%clk 0:01:28]}  Rb2 {[%clk 0:01:19]} 36. f3 {[%clk 0:01:26]}  b4 {[%clk 0:01:19]} 37. Rd8 {[%clk 0:01:21]}  Ke7 {[%clk 0:01:19]} 38. Rb8 {[%clk 0:01:21]}  b3 {[%clk 0:01:19]} 39. d5 {[%clk 0:00:43]}  Ba4 {[%clk 0:01:09]} 40. Rb4 {[%clk 0:00:40]}  Be8 {[%clk 0:00:55]} 41. Ke5 {[%clk 0:00:32]}  Re2+ {[%clk 0:00:54]} 42. Kd4 {[%clk 0:00:33]}  Rd2+ {[%clk 0:00:47]} 43. Ke5 {[%clk 0:00:24]}  b2 {[%clk 0:00:41]} 44. Rb7+ {[%clk 0:00:23]}  Kf8 {[%clk 0:00:38]} 45. d6 {[%clk 0:00:23]}  Bc6 {[%clk 0:00:31]} 46. Rb8+ {[%clk 0:00:10]}  Kg7 {[%clk 0:00:32]} 47. d7 {[%clk 0:00:10]}  Rd5+ {[%clk 0:00:30]} 48. Kf4 {[%clk 0:00:08]}  Bxd7 {[%clk 0:00:06]} 49. Bxd7 {[%clk 0:00:05]}  Rd4+ {[%clk 0:00:07]} 50. Kg3 {[%clk 0:00:04]}  Rxd7 {[%clk 0:00:08]} 51. Rxb2 {[%clk 0:00:04]}  h5 {[%clk 0:00:08]} 52. h4 {[%clk 0:00:03]}  Rd4 {[%clk 0:00:08]} 53. Rb6 {[%clk 0:00:03]}  Kf8 {[%clk 0:00:08]} 54. Rc6 {[%clk 0:00:03]}  Ke7 {[%clk 0:00:09]} 55. Rb6 {[%clk 0:00:03]}  Rd6 {[%clk 0:00:09]} 56. Rb7+ {[%clk 0:00:03]}  Ke6 {[%clk 0:00:09]} 57. Rb5 {[%clk 0:00:03]}  Rd5 {[%clk 0:00:09]} 58. Rb6+ {[%clk 0:00:03]}  Ke5 {[%clk 0:00:09]} 59. Rf6 {[%clk 0:00:03]}  Rd7 {[%clk 0:00:09]} 60. f4+ {[%clk 0:00:03]}  Ke4 {[%clk 0:00:10]} 61. f5 {[%clk 0:00:03]}  gxf5 {[%clk 0:00:09]} 62. Rh6 {[%clk 0:00:04]}  f4+ {[%clk 0:00:08]} 63. Kf2 {[%clk 0:00:04]}  Rd2+ {[%clk 0:00:08]} 64. Ke1 {[%clk 0:00:04]}  Rh2 {[%clk 0:00:09]} 65. Rxh5 {[%clk 0:00:03]}  Ke3 {[%clk 0:00:09]} 66. Kf1 {[%clk 0:00:03]}  f3 {[%clk 0:00:09]} 67. Kg1 {[%clk 0:00:04]}  f2+ {[%clk 0:00:07]} 68. Kxh2 {[%clk 0:00:03]}  f1=Q {[%clk 0:00:07]} 69. Rh6 {[%clk 0:00:04]}  Qf2+ {[%clk 0:00:06]} 70. Kh3 {[%clk 0:00:05]}  Qf3+ {[%clk 0:00:07]} 71. Kh2 {[%clk 0:00:05]}  Qg4 {[%clk 0:00:06]} 72. Rh7 {[%clk 0:00:02]}  Qf4+ {[%clk 0:00:05]} 73. Kg1 {[%clk 0:00:03]}  Kf3 {[%clk 0:00:04]} 0-1


[Site "https://www.chess.com"]

[Event "Titled Tuesday Blitz May 24 Early 2022"]
[White "Manukian, Artak"]
[Black "Fernandez Siles, Luis"]
[WhiteFideId "13301373"]
[BlackFideId "2209420"]
[WhiteElo "2527"]
[BlackElo "2212"]
[Result "1-0"]
[Round "11"]
[TimeControl "180+1"]
[Date "2022.05.25"]
[WhiteClock "0:00:43"]
[BlackClock "0:00:27"]

1. e4 {[%clk 0:03:00]}  c5 {[%clk 0:02:59]} 2. Nf3 {[%clk 0:03:00]}  Nc6 {[%clk 0:02:59]} 3. c3 {[%clk 0:03:00]}  Nf6 {[%clk 0:02:58]} 4. e5 {[%clk 0:03:00]}  Nd5 {[%clk 0:02:58]} 5. d4 {[%clk 0:03:01]}  cxd4 {[%clk 0:02:58]} 6. cxd4 {[%clk 0:03:02]}  d6 {[%clk 0:02:58]} 7. Nc3 {[%clk 0:03:03]}  dxe5 {[%clk 0:02:57]} 8. dxe5 {[%clk 0:03:02]}  Nxc3 {[%clk 0:02:57]} 9. Qxd8+ {[%clk 0:03:03]}  Nxd8 {[%clk 0:02:57]} 10. bxc3 {[%clk 0:03:03]}  a6 {[%clk 0:02:54]} 11. Nd4 {[%clk 0:03:02]}  Ne6 {[%clk 0:02:50]} 12. f4 {[%clk 0:03:01]}  g6 {[%clk 0:02:47]} 13. Be3 {[%clk 0:02:22]}  Bg7 {[%clk 0:02:41]} 14. Bc4 {[%clk 0:02:21]}  O-O {[%clk 0:02:33]} 15. Nxe6 {[%clk 0:02:14]}  Bxe6 {[%clk 0:02:34]} 16. Bxe6 {[%clk 0:02:14]}  fxe6 {[%clk 0:02:34]} 17. h4 {[%clk 0:02:01]}  h5 {[%clk 0:02:28]} 18. Kd2 {[%clk 0:01:52]}  Rac8 {[%clk 0:02:23]} 19. Rhb1 {[%clk 0:01:42]}  Rc7 {[%clk 0:02:03]} 20. Rb6 {[%clk 0:01:31]}  Rd8+ {[%clk 0:01:57]} 21. Kc2 {[%clk 0:01:28]}  Kf7 {[%clk 0:01:47]} 22. Rab1 {[%clk 0:01:19]}  Rdd7 {[%clk 0:01:42]} 23. a4 {[%clk 0:01:13]}  Ke8 {[%clk 0:01:40]} 24. Rxe6 {[%clk 0:01:09]}  Rc6 {[%clk 0:00:59]} 25. Rxc6 {[%clk 0:01:04]}  bxc6 {[%clk 0:01:00]} 26. Rb6 {[%clk 0:01:04]}  Rc7 {[%clk 0:00:46]} 27. Rxa6 {[%clk 0:01:03]}  Kf7 {[%clk 0:00:45]} 28. Ra7 {[%clk 0:00:58]}  Rc8 {[%clk 0:00:39]} 29. a5 {[%clk 0:00:51]}  Ke6 {[%clk 0:00:34]} 30. Bc5 {[%clk 0:00:47]}  Bf8 {[%clk 0:00:34]} 31. a6 {[%clk 0:00:45]}  Kd5 {[%clk 0:00:34]} 32. Bxe7 {[%clk 0:00:44]}  Bxe7 {[%clk 0:00:27]} 33. Rxe7 {[%clk 0:00:45]}  Ke4 {[%clk 0:00:27]} 34. g3 {[%clk 0:00:43]}  Kf3 {[%clk 0:00:27]} 35. e6 {[%clk 0:00:42]}  Kxg3 {[%clk 0:00:27]} 36. Rf7 {[%clk 0:00:43]}  Kxh4 {[%clk 0:00:26]} 37. e7 {[%clk 0:00:43]}  Re8 {[%clk 0:00:26]} 38. a7 {[%clk 0:00:43]}  Kg3 {[%clk 0:00:26]} 39. Rf8 {[%clk 0:00:43]}  Rxe7 {[%clk 0:00:27]} 40. a8=Q {[%clk 0:00:43]}  Re2+ {[%clk 0:00:27]} 41. Kd3 {[%clk 0:00:43]} 1-0


[Site "https://www.chess.com"]

[Event "Titled Tuesday Blitz May 24 Early 2022"]
[White "Martin, Lewis"]
[Black "Winkels, Marcel"]
[WhiteFideId "410551"]
[BlackFideId "1003887"]
[WhiteElo "2145"]
[BlackElo "1900"]
[Result "1-0"]
[Round "11"]
[TimeControl "180+1"]
[Date "2022.05.25"]
[WhiteClock "0:01:13"]
[BlackClock "0:00:43"]

1. e4 {[%clk 0:02:54]}  c5 {[%clk 0:02:59]} 2. Nf3 {[%clk 0:02:54]}  d6 {[%clk 0:02:59]} 3. d4 {[%clk 0:02:54]}  cxd4 {[%clk 0:03:00]} 4. Nxd4 {[%clk 0:02:55]}  Nf6 {[%clk 0:03:00]} 5. Nc3 {[%clk 0:02:56]}  a6 {[%clk 0:03:00]} 6. Bg5 {[%clk 0:02:56]}  Nbd7 {[%clk 0:02:56]} 7. Qe2 {[%clk 0:02:56]}  h6 {[%clk 0:02:47]} 8. Bh4 {[%clk 0:02:56]}  g6 {[%clk 0:02:48]} 9. O-O-O {[%clk 0:02:55]}  Bg7 {[%clk 0:02:47]} 10. f4 {[%clk 0:02:55]}  O-O {[%clk 0:02:45]} 11. e5 {[%clk 0:02:32]}  Ne8 {[%clk 0:02:35]} 12. exd6 {[%clk 0:02:28]}  Nxd6 {[%clk 0:02:13]} 13. Bxe7 {[%clk 0:02:25]}  Qc7 {[%clk 0:02:09]} 14. Bxf8 {[%clk 0:02:17]}  Nxf8 {[%clk 0:02:07]} 15. Nd5 {[%clk 0:02:15]}  Qa5 {[%clk 0:01:53]} 16. Ne7+ {[%clk 0:01:42]}  Kh7 {[%clk 0:01:51]} 17. Kb1 {[%clk 0:01:42]}  Qb6 {[%clk 0:01:35]} 18. Nd5 {[%clk 0:01:31]}  Qc5 {[%clk 0:01:24]} 19. Nb3 {[%clk 0:01:29]}  Qc6 {[%clk 0:01:15]} 20. g4 {[%clk 0:01:24]}  Be6 {[%clk 0:01:13]} 21. Bg2 {[%clk 0:01:24]}  a5 {[%clk 0:00:52]} 22. Nf6+ {[%clk 0:01:22]}  Bxf6 {[%clk 0:00:49]} 23. Bxc6 {[%clk 0:01:23]}  bxc6 {[%clk 0:00:49]} 24. Rxd6 {[%clk 0:01:23]}  Bd5 {[%clk 0:00:47]} 25. Rd1 {[%clk 0:01:14]}  Be7 {[%clk 0:00:43]} 26. Qxe7 {[%clk 0:01:13]} 1-0


[Site "https://www.chess.com"]

[Event "Titled Tuesday Blitz May 24 Early 2022"]
[White "Martinez Alcantara, Jose Eduardo"]
[Black "Kollars, Dmitrij"]
[WhiteFideId "3805662"]
[BlackFideId "12909572"]
[WhiteElo "2690"]
[BlackElo "2584"]
[Result "1-0"]
[Round "11"]
[TimeControl "180+1"]
[Date "2022.05.24"]
[WhiteClock "0:00:17"]
[BlackClock "0:00:01"]

1. e4 {[%clk 0:03:00]}  e5 {[%clk 0:02:59]} 2. Nf3 {[%clk 0:03:00]}  Nc6 {[%clk 0:02:59]} 3. Bb5 {[%clk 0:03:01]}  a6 {[%clk 0:03:00]} 4. Ba4 {[%clk 0:03:02]}  Nf6 {[%clk 0:03:00]} 5. d3 {[%clk 0:03:03]}  Bc5 {[%clk 0:02:57]} 6. c3 {[%clk 0:03:02]}  b5 {[%clk 0:02:56]} 7. Bb3 {[%clk 0:03:02]}  d6 {[%clk 0:02:55]} 8. Bg5 {[%clk 0:03:02]}  h6 {[%clk 0:02:55]} 9. Bh4 {[%clk 0:03:03]}  Bb6 {[%clk 0:02:52]} 10. Nbd2 {[%clk 0:03:02]}  Qe7 {[%clk 0:02:31]} 11. Nf1 {[%clk 0:02:55]}  g5 {[%clk 0:02:21]} 12. Bg3 {[%clk 0:02:55]}  Nh5 {[%clk 0:02:13]} 13. Ne3 {[%clk 0:02:51]}  Bxe3 {[%clk 0:02:08]} 14. fxe3 {[%clk 0:02:51]}  Nxg3 {[%clk 0:02:09]} 15. hxg3 {[%clk 0:02:51]}  Be6 {[%clk 0:02:01]} 16. Qe2 {[%clk 0:02:45]}  a5 {[%clk 0:01:54]} 17. d4 {[%clk 0:02:42]}  Bd7 {[%clk 0:01:35]} 18. a3 {[%clk 0:02:18]}  Rb8 {[%clk 0:01:30]} 19. Bd5 {[%clk 0:02:10]}  Nd8 {[%clk 0:01:27]} 20. b4 {[%clk 0:02:05]}  c6 {[%clk 0:01:18]} 21. Ba2 {[%clk 0:02:05]}  axb4 {[%clk 0:01:16]} 22. axb4 {[%clk 0:02:05]}  Bg4 {[%clk 0:01:08]} 23. Bb3 {[%clk 0:01:59]}  Kf8 {[%clk 0:00:58]} 24. O-O {[%clk 0:01:54]}  Kg7 {[%clk 0:00:57]} 25. Qf2 {[%clk 0:01:53]}  Bxf3 {[%clk 0:00:54]} 26. Qxf3 {[%clk 0:01:53]}  h5 {[%clk 0:00:44]} 27. Qe2 {[%clk 0:01:34]}  Rh6 {[%clk 0:00:39]} 28. Rf5 {[%clk 0:01:34]}  f6 {[%clk 0:00:33]} 29. Qd3 {[%clk 0:01:31]}  Rb7 {[%clk 0:00:25]} 30. Rff1 {[%clk 0:01:14]}  Ra7 {[%clk 0:00:15]} 31. Ra5 {[%clk 0:01:13]}  Rd7 {[%clk 0:00:14]} 32. Qe2 {[%clk 0:01:08]}  Ne6 {[%clk 0:00:07]} 33. Ra6 {[%clk 0:00:57]}  Rc7 {[%clk 0:00:07]} 34. Qf2 {[%clk 0:00:49]}  g4 {[%clk 0:00:06]} 35. Ra8 {[%clk 0:00:47]}  Rh8 {[%clk 0:00:01]} 36. Rxh8 {[%clk 0:00:46]}  Kxh8 {[%clk 0:00:02]} 37. Qf5 {[%clk 0:00:47]}  Ng5 {[%clk 0:00:02]} 38. Qg6 {[%clk 0:00:42]}  Qg7 {[%clk 0:00:02]} 39. Qe8+ {[%clk 0:00:36]}  Kh7 {[%clk 0:00:03]} 40. Qxh5+ {[%clk 0:00:37]}  Qh6 {[%clk 0:00:03]} 41. Qxh6+ {[%clk 0:00:35]}  Kxh6 {[%clk 0:00:03]} 42. Rxf6+ {[%clk 0:00:36]}  Kg7 {[%clk 0:00:04]} 43. Rxd6 {[%clk 0:00:28]}  Nxe4 {[%clk 0:00:05]} 44. Re6 {[%clk 0:00:28]}  Nxc3 {[%clk 0:00:03]} 45. Rxe5 {[%clk 0:00:22]}  Kf6 {[%clk 0:00:02]} 46. Be6 {[%clk 0:00:17]}  Ra7 {[%clk 0:00:01]} 47. Bxg4 {[%clk 0:00:17]}  Ra1+ {[%clk 0:00:01]} 48. Kh2 {[%clk 0:00:17]}  Nd5 {[%clk 0:00:01]} 49. Bf3 {[%clk 0:00:17]}  Nxb4 {[%clk 0:00:01]} 50. g4 {[%clk 0:00:17]} 1-0


[Site "https://www.chess.com"]

[Event "Titled Tuesday Blitz May 24 Early 2022"]
[White "Meunier-Pion, Jean"]
[Black "Artemenko, Oleg"]
[WhiteFideId "20685327"]
[BlackFideId "14201798"]
[WhiteElo "2124"]
[BlackElo "2287"]
[Result "0-1"]
[Round "11"]
[TimeControl "180+1"]
[Date "2022.05.24"]
[WhiteClock "0:00:02"]
[BlackClock "0:00:26"]

1. e4 {[%clk 0:03:00]}  e6 {[%clk 0:02:59]} 2. d4 {[%clk 0:03:00]}  d5 {[%clk 0:03:00]} 3. Nd2 {[%clk 0:03:01]}  c5 {[%clk 0:02:58]} 4. exd5 {[%clk 0:03:01]}  Qxd5 {[%clk 0:02:59]} 5. Ngf3 {[%clk 0:03:01]}  cxd4 {[%clk 0:02:59]} 6. Bc4 {[%clk 0:03:02]}  Qd7 {[%clk 0:03:00]} 7. O-O {[%clk 0:03:02]}  Nc6 {[%clk 0:03:01]} 8. Nb3 {[%clk 0:03:03]}  Nf6 {[%clk 0:03:01]} 9. Nbxd4 {[%clk 0:03:03]}  Nxd4 {[%clk 0:03:02]} 10. Nxd4 {[%clk 0:03:03]}  a6 {[%clk 0:03:02]} 11. Bb3 {[%clk 0:03:03]}  b5 {[%clk 0:03:02]} 12. Re1 {[%clk 0:02:57]}  Bb7 {[%clk 0:03:02]} 13. a4 {[%clk 0:02:41]}  b4 {[%clk 0:02:58]} 14. a5 {[%clk 0:02:39]}  O-O-O {[%clk 0:02:51]} 15. c3 {[%clk 0:01:54]}  bxc3 {[%clk 0:02:50]} 16. bxc3 {[%clk 0:01:45]}  Kb8 {[%clk 0:02:50]} 17. Qe2 {[%clk 0:01:27]}  Bd6 {[%clk 0:02:48]} 18. Rb1 {[%clk 0:01:25]}  Qc7 {[%clk 0:02:43]} 19. Bc4 {[%clk 0:01:11]}  Ka7 {[%clk 0:02:22]} 20. Rb6 {[%clk 0:00:36]}  Bc5 {[%clk 0:02:18]} 21. Be3 {[%clk 0:00:36]}  Ka8 {[%clk 0:02:14]} 22. Bxa6 {[%clk 0:00:31]}  Be4 {[%clk 0:01:40]} 23. Nb5 {[%clk 0:00:21]}  Qe5 {[%clk 0:01:36]} 24. Qc4 {[%clk 0:00:12]}  Bxe3 {[%clk 0:01:19]} 25. Nc7+ {[%clk 0:00:12]}  Ka7 {[%clk 0:01:18]} 26. Nb5+ {[%clk 0:00:10]}  Ka8 {[%clk 0:01:09]} 27. Nc7+ {[%clk 0:00:09]}  Ka7 {[%clk 0:00:59]} 28. Bb7 {[%clk 0:00:07]}  Bxf2+ {[%clk 0:00:51]} 29. Kh1 {[%clk 0:00:06]}  Bxb6 {[%clk 0:00:40]} 30. axb6+ {[%clk 0:00:06]}  Kxb7 {[%clk 0:00:29]} 31. Qa6+ {[%clk 0:00:05]}  Kb8 {[%clk 0:00:29]} 32. Qa7+ {[%clk 0:00:03]}  Kc8 {[%clk 0:00:30]} 33. Na6 {[%clk 0:00:02]}  Bxg2+ {[%clk 0:00:28]} 34. Kxg2 {[%clk 0:00:02]}  Rd2+ {[%clk 0:00:28]} 35. Kf3 {[%clk 0:00:01]}  Qf5+ {[%clk 0:00:25]} 36. Ke3 {[%clk 0:00:02]}  Rd3+ {[%clk 0:00:25]} 37. Ke2 {[%clk 0:00:02]}  Qf3# {[%clk 0:00:26]} 0-1


[Site "https://www.chess.com"]

[Event "Titled Tuesday Blitz May 24 Early 2022"]
[White "Miszler, Levente"]
[Black "Clawitter, Craig"]
[WhiteFideId "763276"]
[BlackFideId "2023105"]
[WhiteElo "1966"]
[BlackElo "2208"]
[Result "1-0"]
[Round "11"]
[TimeControl "180+1"]
[Date "2022.05.25"]
[WhiteClock "0:00:13"]
[BlackClock "0:00:01"]

1. Nf3 {[%clk 0:03:00]}  Nf6 {[%clk 0:02:56]} 2. g3 {[%clk 0:02:58]}  e6 {[%clk 0:02:55]} 3. Bg2 {[%clk 0:02:59]}  d5 {[%clk 0:02:56]} 4. O-O {[%clk 0:03:00]}  Be7 {[%clk 0:02:56]} 5. b3 {[%clk 0:02:58]}  O-O {[%clk 0:02:56]} 6. Bb2 {[%clk 0:02:59]}  c5 {[%clk 0:02:55]} 7. c4 {[%clk 0:02:57]}  b6 {[%clk 0:02:52]} 8. e3 {[%clk 0:02:57]}  Bb7 {[%clk 0:02:52]} 9. d4 {[%clk 0:02:56]}  Nbd7 {[%clk 0:02:50]} 10. Qe2 {[%clk 0:02:56]}  a6 {[%clk 0:02:47]} 11. Nbd2 {[%clk 0:02:56]}  Re8 {[%clk 0:02:45]} 12. Ne5 {[%clk 0:02:56]}  Nxe5 {[%clk 0:02:37]} 13. dxe5 {[%clk 0:02:57]}  Nd7 {[%clk 0:02:34]} 14. Rfd1 {[%clk 0:02:57]}  Qc7 {[%clk 0:02:32]} 15. Nf3 {[%clk 0:02:56]}  Rad8 {[%clk 0:02:21]} 16. Rac1 {[%clk 0:02:55]}  dxc4 {[%clk 0:02:19]} 17. Qxc4 {[%clk 0:02:54]}  Bxf3 {[%clk 0:02:05]} 18. Bxf3 {[%clk 0:02:55]}  Nxe5 {[%clk 0:02:05]} 19. Bxe5 {[%clk 0:02:54]}  Qxe5 {[%clk 0:02:05]} 20. Qxa6 {[%clk 0:02:53]}  Qb2 {[%clk 0:01:41]} 21. Qxb6 {[%clk 0:02:51]}  Qxa2 {[%clk 0:01:32]} 22. Qc7 {[%clk 0:02:46]}  Bf6 {[%clk 0:01:02]} 23. Bc6 {[%clk 0:01:56]}  Rxd1+ {[%clk 0:00:56]} 24. Rxd1 {[%clk 0:01:57]}  Qxb3 {[%clk 0:00:52]} 25. Bxe8 {[%clk 0:01:21]}  Qxd1+ {[%clk 0:00:50]} 26. Kg2 {[%clk 0:01:22]}  Qd5+ {[%clk 0:00:47]} 27. Kg1 {[%clk 0:00:54]}  Qd1+ {[%clk 0:00:29]} 28. Kg2 {[%clk 0:00:55]}  Qd5+ {[%clk 0:00:30]} 29. Kg1 {[%clk 0:00:55]}  e5 {[%clk 0:00:30]} 30. e4 {[%clk 0:00:54]}  Qc4 {[%clk 0:00:13]} 31. Bb5 {[%clk 0:00:37]}  Qc1+ {[%clk 0:00:10]} 32. Kg2 {[%clk 0:00:37]}  g6 {[%clk 0:00:09]} 33. Bc6 {[%clk 0:00:32]}  Kg7 {[%clk 0:00:04]} 34. Bd5 {[%clk 0:00:32]}  Bg5 {[%clk 0:00:05]} 35. Qxf7+ {[%clk 0:00:32]}  Kh6 {[%clk 0:00:06]} 36. Qf8+ {[%clk 0:00:27]}  Kh5 {[%clk 0:00:06]} 37. h4 {[%clk 0:00:15]}  Bxh4 {[%clk 0:00:05]} 38. Qf3+ {[%clk 0:00:14]}  Kg5 {[%clk 0:00:03]} 39. gxh4+ {[%clk 0:00:14]}  Kxh4 {[%clk 0:00:03]} 40. Qg3+ {[%clk 0:00:14]}  Kh5 {[%clk 0:00:04]} 41. Qxe5+ {[%clk 0:00:14]}  Qg5+ {[%clk 0:00:03]} 42. Qxg5+ {[%clk 0:00:14]}  Kxg5 {[%clk 0:00:03]} 43. Kg3 {[%clk 0:00:14]}  h5 {[%clk 0:00:03]} 44. f4+ {[%clk 0:00:14]}  Kf6 {[%clk 0:00:04]} 45. e5+ {[%clk 0:00:14]}  Kf5 {[%clk 0:00:04]} 46. Kf3 {[%clk 0:00:14]}  g5 {[%clk 0:00:04]} 47. Be4+ {[%clk 0:00:13]}  Ke6 {[%clk 0:00:03]} 48. fxg5 {[%clk 0:00:12]}  Kxe5 {[%clk 0:00:03]} 49. g6 {[%clk 0:00:12]}  Kf6 {[%clk 0:00:03]} 50. Bc2 {[%clk 0:00:12]}  c4 {[%clk 0:00:02]} 51. Kg3 {[%clk 0:00:13]}  c3 {[%clk 0:00:01]} 52. Kh4 {[%clk 0:00:13]} 1-0


[Site "https://www.chess.com"]

[Event "Titled Tuesday Blitz May 24 Early 2022"]
[White "Nogerbek, Kazybek"]
[Black "Cardoso Cardoso, Jose Gabriel"]
[WhiteFideId "13710427"]
[BlackFideId "4430492"]
[WhiteElo "2441"]
[BlackElo "2485"]
[Result "0-1"]
[Round "11"]
[TimeControl "180+1"]
[Date "2022.05.24"]
[WhiteClock "0:02:18"]
[BlackClock "0:01:32"]

1. Nf3 {[%clk 0:03:00]}  c5 {[%clk 0:02:58]} 2. c4 {[%clk 0:02:58]}  Nc6 {[%clk 0:02:58]} 3. Nc3 {[%clk 0:02:58]}  g6 {[%clk 0:02:58]} 4. g3 {[%clk 0:02:58]}  Bg7 {[%clk 0:02:57]} 5. Bg2 {[%clk 0:02:59]}  d6 {[%clk 0:02:55]} 6. O-O {[%clk 0:02:59]}  Nh6 {[%clk 0:02:53]} 7. d3 {[%clk 0:02:59]}  Nf5 {[%clk 0:02:52]} 8. a3 {[%clk 0:02:59]}  O-O {[%clk 0:02:51]} 9. Rb1 {[%clk 0:03:00]}  a5 {[%clk 0:02:47]} 10. Bd2 {[%clk 0:03:00]}  Nfd4 {[%clk 0:02:39]} 11. Nxd4 {[%clk 0:02:54]}  cxd4 {[%clk 0:02:38]} 12. Nb5 {[%clk 0:02:50]}  a4 {[%clk 0:02:38]} 13. b4 {[%clk 0:02:47]}  axb3 {[%clk 0:02:37]} 14. Qxb3 {[%clk 0:02:47]}  Bg4 {[%clk 0:02:35]} 15. Rfe1 {[%clk 0:02:47]}  Qd7 {[%clk 0:02:33]} 16. a4 {[%clk 0:02:44]}  Bh3 {[%clk 0:02:31]} 17. Na3 {[%clk 0:02:41]}  Rfb8 {[%clk 0:02:24]} 18. Nc2 {[%clk 0:02:39]}  Bxg2 {[%clk 0:02:16]} 19. Kxg2 {[%clk 0:02:40]}  h5 {[%clk 0:02:12]} 20. Qb5 {[%clk 0:02:36]}  h4 {[%clk 0:02:09]} 21. a5 {[%clk 0:02:36]}  h3+ {[%clk 0:02:06]} 22. Kg1 {[%clk 0:02:37]}  Qe6 {[%clk 0:02:03]} 23. Ra1 {[%clk 0:02:26]}  Ra6 {[%clk 0:02:01]} 24. Reb1 {[%clk 0:02:26]}  Qxe2 {[%clk 0:01:59]} 25. Rd1 {[%clk 0:02:21]}  Ne5 {[%clk 0:01:41]} 26. Ne1 {[%clk 0:02:18]}  Ng4 {[%clk 0:01:32]} 0-1


[Site "https://www.chess.com"]

[Event "Titled Tuesday Blitz May 24 Early 2022"]
[White "Nugumanov, Bakhtiyar"]
[Black "Dahlgren, James Allen"]
[WhiteFideId "13701797"]
[BlackFideId "22256873"]
[WhiteElo "2262"]
[BlackElo "2082"]
[Result "1-0"]
[Round "11"]
[TimeControl "180+1"]
[Date "2022.05.25"]
[WhiteClock "0:00:13"]
[BlackClock "0:00:43"]

1. Nf3 {[%clk 0:03:00]}  e6 {[%clk 0:03:00]} 2. g3 {[%clk 0:03:00]}  c5 {[%clk 0:03:01]} 3. c4 {[%clk 0:03:00]}  Nf6 {[%clk 0:02:59]} 4. Bg2 {[%clk 0:03:01]}  d5 {[%clk 0:02:59]} 5. O-O {[%clk 0:02:59]}  Be7 {[%clk 0:03:00]} 6. cxd5 {[%clk 0:02:59]}  exd5 {[%clk 0:03:01]} 7. d4 {[%clk 0:02:59]}  O-O {[%clk 0:03:02]} 8. Nc3 {[%clk 0:02:58]}  c4 {[%clk 0:03:02]} 9. Ne5 {[%clk 0:02:29]}  Nc6 {[%clk 0:02:57]} 10. Bg5 {[%clk 0:02:23]}  Be6 {[%clk 0:02:57]} 11. Qd2 {[%clk 0:01:59]}  h6 {[%clk 0:02:55]} 12. Bf4 {[%clk 0:01:54]}  Nh5 {[%clk 0:02:41]} 13. Be3 {[%clk 0:01:48]}  f5 {[%clk 0:02:35]} 14. Ng6 {[%clk 0:01:44]}  Rf7 {[%clk 0:02:15]} 15. Nxe7+ {[%clk 0:01:09]}  Nxe7 {[%clk 0:02:13]} 16. Bf4 {[%clk 0:01:00]}  Qd7 {[%clk 0:02:11]} 17. e3 {[%clk 0:00:44]}  b5 {[%clk 0:02:08]} 18. Ne2 {[%clk 0:00:39]}  a5 {[%clk 0:01:58]} 19. b3 {[%clk 0:00:39]}  Nc6 {[%clk 0:01:35]} 20. a4 {[%clk 0:00:38]}  cxb3 {[%clk 0:01:27]} 21. axb5 {[%clk 0:00:38]}  Nb4 {[%clk 0:01:27]} 22. Nc3 {[%clk 0:00:27]}  Nxf4 {[%clk 0:01:23]} 23. exf4 {[%clk 0:00:26]}  Nc2 {[%clk 0:01:18]} 24. Ra4 {[%clk 0:00:23]}  Rff8 {[%clk 0:01:05]} 25. Rb1 {[%clk 0:00:23]}  Rfc8 {[%clk 0:00:51]} 26. Rxb3 {[%clk 0:00:24]}  Nb4 {[%clk 0:00:51]} 27. Rba3 {[%clk 0:00:21]}  Rxc3 {[%clk 0:00:48]} 28. Qxc3 {[%clk 0:00:21]}  Qxb5 {[%clk 0:00:48]} 29. Rxb4 {[%clk 0:00:16]}  axb4 {[%clk 0:00:42]} 30. Rxa8+ {[%clk 0:00:17]}  Kh7 {[%clk 0:00:43]} 31. Qb3 {[%clk 0:00:13]} 1-0


[Site "https://www.chess.com"]